Department Family,Entity,Date,Expense Type,Expense Area,Supplier,Transaction Number,Amount,Description,Supplier Postcode,Supplier Type,Expenditure Type
DWP,ILF,06/03/2013,Stakeholder Engagement,Corporate Affairs,User Expenses,136043,540.00,"Travel, Subsitence or general expenses incurred by users in attending ILF Consultation event",0,,Administrative
DWP,ILF,13/03/2013,Stakeholder Engagement,Corporate Affairs,User Expenses,136246,800.00,"Travel, Subsitence or general expenses incurred by users in attending ILF Consultation event",0,,Administrative
DWP,ILF,05/03/2013,Independent Assessor visits,Social Work,Independent Assessor Costs,135966,515.60,Assessment of social care needs and recommendation of ILF funding contribution,0,,Programme
DWP,ILF,12/03/2013,Other Independent Assessor Claims,Social Work,Independent Assessor Costs,136172,518.72,Assessment of social care needs and recommendation of ILF funding contribution,0,,Programme
DWP,ILF,04/03/2013,Website Services,Information & Governance,Node4,135939,540.00,Website services, DE24 8HZ,,Administrative
DWP,ILF,08/03/2013,Legal Costs,Human Resources,Harvey Ingram LLP Solicitors,136100,540.00,"Provision of Legal Service iro debt recovery, human resource, procurement or organisational litigation",LE1 6TX,,Administrative
DWP,ILF,26/03/2013,Independent Assessor visits,Social Work,Independent Assessor Costs,136646,552.95,Assessment of social care needs and recommendation of ILF funding contribution,0,,Programme
DWP,ILF,11/03/2013,ILF Consultation Costs,Communications,Fineprint (Nottingham) Ltd,136133,590.69,Printing service, NG3 2NJ,,Administrative
DWP,ILF,12/03/2013,Independent Assessor visits,Social Work,Independent Assessor Costs,136156,609.20,Assessment of social care needs and recommendation of ILF funding contribution,0,,Programme
DWP,ILF,18/03/2013,Independent Assessor visits,Social Work,Independent Assessor Costs,136323,611.10,Assessment of social care needs and recommendation of ILF funding contribution,0,,Programme
DWP,ILF,25/03/2013,Independent Assessor visits,Social Work,Independent Assessor Costs,136564,613.65,Assessment of social care needs and recommendation of ILF funding contribution,0,,Programme
DWP,ILF,18/03/2013,Independent Assessor visits,Social Work,Independent Assessor Costs,136333,615.15,Assessment of social care needs and recommendation of ILF funding contribution,0,,Programme
DWP,ILF,25/03/2013,Printing Services,Facilities,Fineprint (Nottingham) Ltd,136599,622.80,Printing service, NG3 2NJ,,Administrative
DWP,ILF,25/03/2013,Independent Assessor visits,Social Work,Independent Assessor Costs,136541,645.85,Assessment of social care needs and recommendation of ILF funding contribution,0,,Programme
DWP,ILF,14/03/2013,General T&S ,Information & Governance,Redfern Travel Ltd,136279,646.04,Travel and Accomodation bookings,BD1 3AZ,,Administrative
DWP,ILF,26/03/2013,Independent Assessor visits,Social Work,Independent Assessor Costs,136646,646.80,Assessment of social care needs and recommendation of ILF funding contribution,0,,Programme
DWP,ILF,05/03/2013,Independent Assessor visits,Social Work,Independent Assessor Costs,135976,650.85,Assessment of social care needs and recommendation of ILF funding contribution,0,,Administrative
DWP,ILF,05/03/2013,Independent Assessor visits,Social Work,Independent Assessor Costs,135973,656.35,Assessment of social care needs and recommendation of ILF funding contribution,0,,Programme
DWP,ILF,12/03/2013,Independent Assessor visits,Social Work,Independent Assessor Costs,136155,664.80,Assessment of social care needs and recommendation of ILF funding contribution,0,,Programme
DWP,ILF,12/03/2013,Independent Assessor visits,Social Work,Independent Assessor Costs,136153,666.15,Assessment of social care needs and recommendation of ILF funding contribution,0,,Programme
DWP,ILF,11/03/2013,Misc IT Costs,Information & Governance,XMA Ltd,136122,669.38,Printer Toner Cartidges,NG11 7EP,,Administrative
DWP,ILF,18/03/2013,Independent Assessor visits,Social Work,Independent Assessor Costs,136321,675.15,Assessment of social care needs and recommendation of ILF funding contribution,0,,Programme
DWP,ILF,18/03/2013,Independent Assessor visits,Social Work,Independent Assessor Costs,136329,693.75,Assessment of social care needs and recommendation of ILF funding contribution,0,,Programme
DWP,ILF,11/03/2013,ILF Consultation Costs,Communications,Fineprint (Nottingham) Ltd,136127,695.59,Printing service, NG3 2NJ,,Administrative
DWP,ILF,14/03/2013,Client Visit Costs,Social Work,Redfern Travel Ltd,136279,700.12,Travel and Accomodation bookings,BD1 3AZ,,Administrative
DWP,ILF,25/03/2013,Independent Assessor visits,Social Work,Independent Assessor Costs,136563,700.35,Assessment of social care needs and recommendation of ILF funding contribution,0,,Programme
DWP,ILF,12/03/2013,Independent Assessor visits,Social Work,Independent Assessor Costs,136138,700.60,Assessment of social care needs and recommendation of ILF funding contribution,0,,Programme
DWP,ILF,18/03/2013,Independent Assessor visits,Social Work,Independent Assessor Costs,136313,726.80,Assessment of social care needs and recommendation of ILF funding contribution,0,,Programme
DWP,ILF,19/03/2013,Independent Assessor visits,Social Work,Independent Assessor Costs,136366,740.76,Assessment of social care needs and recommendation of ILF funding contribution,0,,Programme
DWP,ILF,13/03/2013,Phone Charges,Facilities,BT Conferencing,136233,750.52,Telephone conference calls, NW9 6LB,,Administrative
DWP,ILF,18/03/2013,Independent Assessor visits,Social Work,Independent Assessor Costs,136339,763.29,Assessment of social care needs and recommendation of ILF funding contribution,0,,Programme
DWP,ILF,18/03/2013,Independent Assessor visits,Social Work,Independent Assessor Costs,136320,767.65,Assessment of social care needs and recommendation of ILF funding contribution,0,,Programme
DWP,ILF,05/03/2013,Independent Assessor visits,Social Work,Independent Assessor Costs,135978,796.85,Assessment of social care needs and recommendation of ILF funding contribution,0,,Programme
DWP,ILF,05/03/2013,Independent Assessor visits,Social Work,Independent Assessor Costs,135977,799.75,Assessment of social care needs and recommendation of ILF funding contribution,0,,Programme
DWP,ILF,12/03/2013,Independent Assessor visits,Social Work,Independent Assessor Costs,136148,813.55,Assessment of social care needs and recommendation of ILF funding contribution,0,,Programme
DWP,ILF,18/03/2013,Independent Assessor visits,Social Work,Independent Assessor Costs,136336,824.40,Assessment of social care needs and recommendation of ILF funding contribution,0,,Programme
DWP,ILF,14/03/2013,General T&S ,Social Work,Redfern Travel Ltd,136279,828.08,Travel and Accomodation bookings,BD1 3AZ,,Administrative
DWP,ILF,05/03/2013,Independent Assessor visits,Social Work,Independent Assessor Costs,135969,831.90,Assessment of social care needs and recommendation of ILF funding contribution,0,,Programme
DWP,ILF,12/03/2013,Independent Assessor visits,Social Work,Independent Assessor Costs,136141,834.74,Assessment of social care needs and recommendation of ILF funding contribution,0,,Programme
DWP,ILF,21/03/2013,Other Prepayments,Central,Data Voice & Video Sol,136513,837.60,Engineer work for Government Secure Internet, SK1 3TZ,,Administrative
DWP,ILF,27/03/2013,Other Prepayments,Central,Data Voice & Video Sol,136781,837.60,Engineer work for Government Secure Internet, SK1 3TZ,,Administrative
DWP,ILF,25/03/2013,Misc IT Costs,Information & Governance,XMA Ltd,136591,871.10,Printer Toner Cartidges,NG11 7EP,,Administrative
DWP,ILF,11/03/2013,Misc IT Costs,Information & Governance,XMA Ltd,136123,885.24,Printer Toner Cartidges,NG11 7EP,,Administrative
DWP,ILF,05/03/2013,Independent Assessor visits,Social Work,Independent Assessor Costs,135970,895.25,Assessment of social care needs and recommendation of ILF funding contribution,0,,Programme
DWP,ILF,05/03/2013,Independent Assessor visits,Social Work,Independent Assessor Costs,135975,895.90,Assessment of social care needs and recommendation of ILF funding contribution,0,,Programme
DWP,ILF,05/03/2013,Independent Assessor visits,Social Work,Independent Assessor Costs,135972,909.55,Assessment of social care needs and recommendation of ILF funding contribution,0,,Programme
DWP,ILF,25/03/2013,Independent Assessor visits,Social Work,Independent Assessor Costs,136543,937.90,Assessment of social care needs and recommendation of ILF funding contribution,0,,Programme
DWP,ILF,06/03/2013,Other Prepayments,Central,CIPD,136048,948.00,Professional subscriptions/courses,SW19 1JQ,,Administrative
DWP,ILF,18/03/2013,Independent Assessor visits,Social Work,Independent Assessor Costs,136317,957.70,Assessment of social care needs and recommendation of ILF funding contribution,0,,Programme
DWP,ILF,12/03/2013,Independent Assessor visits,Social Work,Independent Assessor Costs,136150,960.25,Assessment of social care needs and recommendation of ILF funding contribution,0,,Programme
DWP,ILF,05/03/2013,Independent Assessor visits,Social Work,Independent Assessor Costs,135974,983.25,Assessment of social care needs and recommendation of ILF funding contribution,0,,Programme
DWP,ILF,12/03/2013,Independent Assessor visits,Social Work,Independent Assessor Costs,136159,984.35,Assessment of social care needs and recommendation of ILF funding contribution,0,,Programme
DWP,ILF,26/03/2013,Independent Assessor visits,Social Work,Independent Assessor Costs,136699,990.65,Assessment of social care needs and recommendation of ILF funding contribution,0,,Programme
DWP,ILF,18/03/2013,Independent Assessor visits,Social Work,Independent Assessor Costs,136339,"1,019.45",Assessment of social care needs and recommendation of ILF funding contribution,0,,Programme
DWP,ILF,06/03/2013,Software Licensing,Human Resources,Ceridian Ltd,136039,"1,036.00",Payroll and HR services, E14 9GE,,Administrative
DWP,ILF,18/03/2013,Independent Assessor visits,Social Work,Independent Assessor Costs,136313,"1,037.97",Assessment of social care needs and recommendation of ILF funding contribution,0,,Programme
DWP,ILF,11/03/2013,ILF Consultation Costs,Communications,Fineprint (Nottingham) Ltd,136126,"1,074.19",Printing service, NG3 2NJ,,Administrative
DWP,ILF,12/03/2013,Independent Assessor visits,Social Work,Independent Assessor Costs,136162,"1,075.15",Assessment of social care needs and recommendation of ILF funding contribution,0,,Programme
DWP,ILF,12/03/2013,Independent Assessor visits,Social Work,Independent Assessor Costs,136157,"1,077.50",Assessment of social care needs and recommendation of ILF funding contribution,0,,Programme
DWP,ILF,12/03/2013,Independent Assessor visits,Social Work,Independent Assessor Costs,136147,"1,109.95",Assessment of social care needs and recommendation of ILF funding contribution,0,,Programme
DWP,ILF,14/03/2013,General T&S ,Payment Security,Redfern Travel Ltd,136279,"1,125.61",Travel and Accomodation bookings,BD1 3AZ,,Administrative
DWP,ILF,05/03/2013,Independent Assessor visits,Social Work,Independent Assessor Costs,135984,"1,128.40",Assessment of social care needs and recommendation of ILF funding contribution,0,,Programme
DWP,ILF,12/03/2013,Independent Assessor visits,Social Work,Independent Assessor Costs,136146,"1,142.70",Assessment of social care needs and recommendation of ILF funding contribution,0,,Programme
DWP,ILF,14/03/2013,General T&S ,Corporate Affairs,Redfern Travel Ltd,136279,"1,151.47",Travel and Accomodation bookings,BD1 3AZ,,Administrative
DWP,ILF,18/03/2013,Independent Assessor visits,Social Work,Independent Assessor Costs,136327,"1,216.41",Assessment of social care needs and recommendation of ILF funding contribution,0,,Programme
DWP,ILF,15/03/2013,Legal Costs,Payment Security,Harvey Ingram LLP Solicitors,136289,"1,225.44","Provision of Legal Service iro debt recovery, human resource, procurement or organisational litigation",LE1 6TX,,Administrative
DWP,ILF,12/03/2013,Independent Assessor visits,Social Work,Independent Assessor Costs,136161,"1,258.00",Assessment of social care needs and recommendation of ILF funding contribution,0,,Programme
DWP,ILF,13/03/2013,Other Prepayments,Central,ACORN Training Consultants Ltd,136230,"1,300.00",Training Provider for NVQs pursued by staff,DE5 3DJ,,Administrative
DWP,ILF,05/03/2013,Independent Assessor visits,Social Work,Independent Assessor Costs,135968,"1,347.27",Assessment of social care needs and recommendation of ILF funding contribution,0,,Programme
DWP,ILF,18/03/2013,Independent Assessor visits,Social Work,Independent Assessor Costs,136334,"1,352.30",Assessment of social care needs and recommendation of ILF funding contribution,0,,Programme
DWP,ILF,26/03/2013,Independent Assessor visits,Social Work,Independent Assessor Costs,136692,"1,372.30",Assessment of social care needs and recommendation of ILF funding contribution,0,,Programme
DWP,ILF,18/03/2013,Independent Assessor visits,Social Work,Independent Assessor Costs,136316,"1,387.20",Assessment of social care needs and recommendation of ILF funding contribution,0,,Programme
DWP,ILF,05/03/2013,Rent & Facilities Lease,Facilities,Land Securities Trillium,136012,"1,394.80","Building lease,maintenance and utilities", LS11 9DX,,Administrative
DWP,ILF,04/03/2013,Business Continuity,Information & Governance,Node4,135939,"1,410.00",Website services, DE24 8HZ,,Administrative
DWP,ILF,12/03/2013,Independent Assessor visits,Social Work,Independent Assessor Costs,136154,"1,431.95",Assessment of social care needs and recommendation of ILF funding contribution,0,,Programme
DWP,ILF,25/03/2013,Independent Assessor visits,Social Work,Independent Assessor Costs,136574,"1,437.12",Assessment of social care needs and recommendation of ILF funding contribution,0,,Programme
DWP,ILF,11/03/2013,ILF Consultation Costs,Communications,Fineprint (Nottingham) Ltd,136132,"1,502.55",Printing service, NG3 2NJ,,Administrative
DWP,ILF,13/03/2013,Other Prepayments,Central,BMC Software Distribution BV,136231,"1,521.91",IT software licence renewal for support service work management system,NL-1118 ZX,,Administrative
DWP,ILF,26/03/2013,Independent Assessor visits,Social Work,Independent Assessor Costs,136657,"1,533.15",Assessment of social care needs and recommendation of ILF funding contribution,0,,Programme
DWP,ILF,12/03/2013,Independent Assessor visits,Social Work,Independent Assessor Costs,136160,"1,555.80",Assessment of social care needs and recommendation of ILF funding contribution,0,,Programme
DWP,ILF,14/03/2013,Other Training Costs,Human Resources,Redfern Travel Ltd,136279,"1,569.71",Travel and Accomodation bookings,BD1 3AZ,,Administrative
DWP,ILF,06/03/2013,Phone Charges,Facilities,BT PLC,136037,"1,628.01",Telephone service, NE82 6XX,,Administrative
DWP,ILF,05/03/2013,Independent Assessor visits,Social Work,Independent Assessor Costs,135981,"1,667.30",Assessment of social care needs and recommendation of ILF funding contribution,0,,Programme
DWP,ILF,12/03/2013,Independent Assessor visits,Social Work,Independent Assessor Costs,136143,"1,766.30",Assessment of social care needs and recommendation of ILF funding contribution,0,,Programme
DWP,ILF,26/03/2013,Independent Assessor visits,Social Work,Independent Assessor Costs,136650,"1,784.90",Assessment of social care needs and recommendation of ILF funding contribution,0,,Programme
DWP,ILF,18/03/2013,Printing & Literature ,Communications,Fineprint (Nottingham) Ltd,136346,"1,815.40",Printing service, NG3 2NJ,,Administrative
DWP,ILF,12/03/2013,Independent Assessor visits,Social Work,Independent Assessor Costs,136139,"1,934.40",Assessment of social care needs and recommendation of ILF funding contribution,0,,Programme
DWP,ILF,11/03/2013,ILF Consultation Costs,Communications,Fineprint (Nottingham) Ltd,136128,"1,975.11",Printing service, NG3 2NJ,,Administrative
DWP,ILF,05/03/2013,Independent Assessor visits,Social Work,Independent Assessor Costs,135965,"2,001.75",Assessment of social care needs and recommendation of ILF funding contribution,0,,Programme
DWP,ILF,26/03/2013,Independent Assessor visits,Social Work,Independent Assessor Costs,136646,"2,045.85",Assessment of social care needs and recommendation of ILF funding contribution,0,,Programme
DWP,ILF,05/03/2013,Independent Assessor visits,Social Work,Independent Assessor Costs,135979,"2,119.85",Assessment of social care needs and recommendation of ILF funding contribution,0,,Programme
DWP,ILF,18/03/2013,Independent Assessor visits,Social Work,Independent Assessor Costs,136315,"2,197.35",Assessment of social care needs and recommendation of ILF funding contribution,0,,Programme
DWP,ILF,12/03/2013,Other Independent Assessor Claims,Social Work,Independent Assessor Costs,136149,"2,205.21",Assessment of social care needs and recommendation of ILF funding contribution,0,,Programme
DWP,ILF,18/03/2013,Independent Assessor visits,Social Work,Independent Assessor Costs,136325,"2,210.40",Assessment of social care needs and recommendation of ILF funding contribution,0,,Programme
DWP,ILF,11/03/2013,Utilities,Facilities,DWP,136117,"2,390.17",Business subscription iro Grant Recovery, FY5 3TA,,Administrative
DWP,ILF,21/03/2013,Stakeholder Engagement,Corporate Affairs,Calders,136488,"2,441.62",Hotel bookings,LS16 6RF,,Administrative
DWP,ILF,11/03/2013,Utilities,Facilities,DWP,136116,"2,443.52",Business subscription iro Grant Recovery, FY5 3TA,,Administrative
DWP,ILF,18/03/2013,Independent Assessor visits,Social Work,Independent Assessor Costs,136310,"2,586.87",Assessment of social care needs and recommendation of ILF funding contribution,0,,Programme
DWP,ILF,12/03/2013,Independent Assessor visits,Social Work,Independent Assessor Costs,136140,"2,602.70",Assessment of social care needs and recommendation of ILF funding contribution,0,,Programme
DWP,ILF,11/03/2013,ILF Consultation Costs,Communications,Fineprint (Nottingham) Ltd,136125,"2,642.04",Printing service, NG3 2NJ,,Administrative
DWP,ILF,25/03/2013,Additional Facilities,Facilities,TNT UK Ltd,136578,"2,687.86",Courier service, BL4 9AR,,Administrative
DWP,ILF,05/03/2013,Independent Assessor visits,Social Work,Independent Assessor Costs,135971,"2,706.65",Assessment of social care needs and recommendation of ILF funding contribution,0,,Programme
DWP,ILF,18/03/2013,Independent Assessor visits,Social Work,Independent Assessor Costs,136313,"2,856.40",Assessment of social care needs and recommendation of ILF funding contribution,0,,Programme
DWP,ILF,12/03/2013,Other Independent Assessor Claims,Social Work,Independent Assessor Costs,136158,"3,066.64",Assessment of social care needs and recommendation of ILF funding contribution,,,Programme
DWP,ILF,06/03/2013,Other Prepayments,Central,BT PLC,136037,"3,256.02",Telephone service, NE82 6XX,,Administrative
DWP,ILF,08/03/2013,Utilities,Facilities,DWP,136102,"3,592.37",Business subscription iro Grant Recovery, FY5 3TA,,Administrative
DWP,ILF,13/03/2013,Client Visit Costs,Corporate Affairs,Calders,136266,"3,700.58",Hotel bookings,LS16 6RF,,Administrative
DWP,ILF,25/03/2013,Independent Assessor visits,Social Work,Independent Assessor Costs,136556,"3,760.15",Assessment of social care needs and recommendation of ILF funding contribution,0,,Programme
DWP,ILF,25/03/2013,Equipment Servicing,Information & Governance,Ricoh UK Ltd,136595,"3,794.52",Service Charge for Printing Equipment, TW13 7HG,,Administrative
DWP,ILF,25/03/2013,Printing Services,Facilities,Fineprint (Nottingham) Ltd,136601,"4,104.36",Printing service, NG3 2NJ,,Administrative
DWP,ILF,27/03/2013,Utilities,Facilities,DWP,136790,"4,337.75",Business subscription iro Grant Recovery, FY5 3TA,,Administrative
DWP,ILF,06/03/2013,Legal Costs,Corporate Affairs,Harvey Ingram LLP Solicitors,136072,"4,362.48","Provision of Legal Service iro debt recovery, human resource, procurement or organisational litigation",LE1 6TX,,Administrative
DWP,ILF,11/03/2013,ILF Consultation Costs,Communications,Fineprint (Nottingham) Ltd,136124,"5,430.18",Printing service, NG3 2NJ,,Administrative
DWP,ILF,06/03/2013,Software Services,Information & Governance,Dynamic Data Systems Ltd,136063,"7,027.20",Bespoke software development, NG16 1RL,,Administrative
DWP,ILF,18/03/2013,Stakeholder Engagement,Corporate Affairs,Calders,136342,7326.43,Hotel bookings,LS16 6RF,,Administrative
DWP,ILF,27/03/2013,Utilities,Facilities,DWP,136782,8675.5,Business subscription iro Grant Recovery, FY5 3TA,,Administrative
DWP,ILF,06/03/2013,Printing & Literature ,Communications,Fineprint (Nottingham) Ltd,136071,8866.16,Printing service, NG3 2NJ,,Administrative
DWP,ILF,14/03/2013,Client Visit Costs,Corporate Affairs,Redfern Travel Ltd,136279,9098.02,Travel and Accomodation bookings,BD1 3AZ,,Administrative
DWP,ILF,06/03/2013,Software Services,Information & Governance,Dynamic Data Systems Ltd,136062,9804,Bespoke software development, NG16 1RL,,Administrative
DWP,ILF,25/03/2013,Other Prepayments,Central,Nottingham City Council,136535,11022,Rates , NG1 2DE,,Administrative
DWP,ILF,25/03/2013,Other Prepayments,Central,Desk Top Publishing Group,136594,11145.6,Proactive Support Service, LS10 1RJ,,Administrative
DWP,ILF,25/03/2013,Printing & Literature ,Communications,Royal Mail,136598,15116.47,Postal services, PE4 5PG,,Administrative
DWP,ILF,13/03/2013,Utilities,Facilities,DWP,136234,16820.83,Business subscription iro Grant Recovery, FY5 3TA,,Administrative
DWP,ILF,05/03/2013,Other Prepayments,Central,Phoneix,136006,48942.55,IT Technical Support Service,WF17 9LU,,Administrative
DWP,ILF,05/03/2013,Rent & Facilities Lease,Facilities,Land Securities Trillium,136013,67720.36,"Building lease,maintenance and utilities", LS11 9DX,,Administrative
DWP,ILF,19/03/2013,Additional Facilities,Facilities,Nottingham City Council,136402,69472.5,Rates , NG1 2DE,,Administrative
